bitfinex/quotes_SOLUSD_20250131
["timestamp","ask_amount","ask_price","bid_price","bid_amount"]
[1738364181865,0.063,230.46,230.4,0.65080323]
[1738364182372,0.063,230.46,230.42,6.1531]
[1738364182686,0.063,230.46,230.43,2.24818339]
[1738364183093,0.063,230.46,230.43,10.941377]
[1738364183482,0.063,230.46,230.43,2.24818339]
[1738364184477,0.063,230.46,230.45,8.69319361]
[1738364186086,0.063,230.46,230.45,22.10504214]
[1738364186284,0.063,230.46,230.45,22.75566646]
[1738364187290,0.029398,230.46,230.45,22.75566646]
[1738364188689,0.029398,230.46,230.45,14.06247285]
[1738364189074,0.029398,230.46,230.45,22.75566646]
[1738364190990,0.029398,230.46,230.45,27.09496646]
[1738364191780,0.029398,230.46,230.45,28.09496646]
[1738364194802,0.063,230.51,230.45,28.09496646]
[1738364194803,0.063,230.51,230.49,13.41184853]
[1738364194985,0.063,230.51,230.5,9.34369769]
[1738364195698,0.063,230.51,230.5,22.75554622]
[1738364196599,0.063,230.51,230.5,27.09384622]
[1738364196800,0.063,230.51,230.5,35.20574622]
[1738364197783,6.3708,230.67,230.5,35.20574622]
[1738364197784,1.5947,230.73,230.57,1.0]
[1738364197983,1.5947,230.73,230.62,8.69319361]
[1738364198178,1.5947,230.73,230.63,9.34335003]
[1738364200000,0.063,230.75,230.63,0.65015642]
[1738364200786,0.063,230.75,230.63,4.98595642]
[1738364200992,0.063,230.75,230.64,8.69319361]
[1738364201196,0.063,230.75,230.63,4.98595642]
[1738364202089,0.063,230.75,230.63,0.65015642]
[1738364202409,0.063,230.75,230.63,13.41184853]
[1738364202592,0.063,230.75,230.64,0.65013105]
[1738364202993,0.063,230.75,230.62,0.65017494]
[1738364203193,0.063,230.75,230.54,1.0]
[1738364203194,1.5989,230.7,230.6,0.65025264]
[1738364203401,0.6795376,230.69,230.56,0.65034255]
[1738364205698,3.6195376,230.69,230.57,0.65040014]
[1738364205895,27.66089771,230.69,230.53,0.65043166]
[1738364206500,13.41184853,230.68,230.53,0.65043166]
[1738364206701,0.6795376,230.67,230.53,0.65043166]
[1738364206901,0.6795376,230.67,230.51,13.41184853]
[1738364206902,0.6795376,230.67,230.54,0.65048685]
[1738364207110,0.6795376,230.67,230.52,0.65048933]
[1738364207500,0.6795376,230.67,230.48,14.03169361]
[1738364207501,0.6795376,230.67,230.49,0.65051082]
[1738364208790,0.6795376,230.67,230.5,22.10504214]
[1738364208995,0.6795376,230.67,230.52,22.10504214]
[1738364209196,0.6795376,230.68,230.53,0.65041555]
[1738364209909,0.6795376,230.68,230.54,8.69319361]
[1738364210093,0.6795376,230.68,230.56,8.69319361]
[1738364210292,0.6795376,230.68,230.57,0.65035294]
[1738364211312,0.6795376,230.68,230.58,0.65038927]
[1738364211517,0.6795376,230.68,230.55,0.65038381]
[1738364211687,24.04136011,230.69,230.55,0.65038381]
[1738364211688,24.72089771,230.69,230.57,13.41184853]
[1738364212014,24.72089771,230.69,230.58,0.65029621]
[1738364213012,24.04136011,230.69,230.58,0.65029621]
[1738364213610,24.04136011,230.69,230.58,9.34348982]
[1738364218813,24.04136011,230.69,230.58,13.68028982]
[1738364219522,24.04136011,230.69,230.6,8.69319361]
[1738364219721,24.04136011,230.69,230.62,8.69319361]
[1738364219904,24.04136011,230.69,230.63,0.65017278]
[1738364220312,24.04136011,230.69,230.64,22.10504214]
[1738364220920,24.04136011,230.69,230.64,23.10504214]
[1738364221134,0.063,230.7,230.64,28.44074214]
[1738364221422,0.063,230.7,230.64,29.98914214]
[1738364222822,0.063,230.7,230.64,64.76191658]
[1738364223000,0.0001,230.65,230.64,64.76191658]
[1738364223206,0.063,230.7,230.69,15.41184853]
[1738364223429,0.063,230.7,230.69,24.75491913]
[1738364224928,0.0001,230.7,230.69,29.08971913]
[1738364225103,0.063,230.75,230.74,15.41184853]
[1738364225303,0.063,230.75,230.74,24.7547263]
[1738364226630,0.063,230.75,230.74,29.0885263]
[1738364227328,1.5916,230.92,230.8,2.0]
[1738364227501,1.5916,230.92,230.84,8.69319361]
[1738364227704,1.5916,230.92,230.85,22.75457001]
[1738364228014,1.5916,230.98,230.88,22.10504214]
[1738364228214,0.063,230.94,230.88,22.75444964]
[1738364228408,0.063,230.94,230.88,0.6494075]
[1738364230011,0.063,230.94,230.85,0.64958047]
[1738364230432,0.063,230.94,230.86,0.64959588]
[1738364230619,0.063,230.94,230.81,0.64964752]
[1738364230620,1.5559,230.87,230.81,0.64964752]
[1738364230924,1.5559,230.87,230.77,0.6497582]
[1738364231130,2.2354376,230.87,230.77,0.6497582]
[1738364231432,1.5559,230.87,230.77,0.6497582]
[1738364231831,1.5559,230.87,230.78,0.64977058]
[1738364232015,1.5559,230.87,230.76,13.41184853]
[1738364232211,1.5559,230.87,230.77,0.64977525]
[1738364232912,1.5559,230.87,230.78,22.10504214]
[1738364233123,1.5559,230.87,230.79,0.64971315]
[1738364233726,1.5559,230.87,230.79,14.17728662]
[1738364233929,1.5559,230.87,230.79,0.64971315]
[1738364234525,1.5559,230.87,230.8,0.64977568]
[1738364234724,1.5559,230.87,230.78,0.64977603]
[1738364243221,1.6189,230.87,230.78,0.64977603]
[1738364243422,0.063,230.87,230.85,13.52757347]
[1738364243638,0.063,230.87,230.86,0.64962615]
[1738364244147,0.063,230.87,230.86,1.64962615]
[1738364244846,0.063,230.87,230.86,4.98122615]
[1738364246748,0.063,230.87,230.86,18.39307468]
[1738364247249,0.063,230.87,230.86,19.39307468]
[1738364248140,0.063,230.87,230.86,18.39307468]
[1738364249241,1.6101,231.08,230.94,1.0]
[1738364249434,1.6101,231.08,230.97,13.52757347]
[1738364249634,1.6101,231.08,230.98,0.64916256]
[1738364250031,1.6101,231.08,230.99,13.52757347]
[1738364250255,1.6101,231.08,231.0,0.64914152]
[1738364251426,1.6101,231.08,231.0,14.06099005]
[1738364251626,6.4032,231.09,231.0,14.06099005]
[1738364251837,1.6101,231.13,231.0,14.06099005]
[1738364252033,1.6101,231.13,231.0,27.58856352]
[1738364252555,1.6101,231.13,231.0,14.06099005]
[1738364253742,1.6101,231.13,231.04,1.0]
[1738364253957,1.6101,231.13,231.06,13.52757347]
[1738364254254,1.6101,231.13,231.08,13.41184853]
[1738364254443,1.6101,231.13,231.09,0.64890827]
[1738364255954,0.063,231.14,231.1,26.939422]
[1738364258449,0.063,231.14,231.1,27.58823858]
[1738364260265,0.063,231.14,231.1,28.58823858]
[1738364264065,0.063,231.14,231.1,32.91533858]
[1738364268762,0.0001,231.11,231.1,32.91533858]
[1738364269073,0.0001,231.11,231.1,46.44291205]
[1738364269458,0.0001,231.11,231.1,32.91533858]
[1738364270282,0.0001,231.11,231.1,46.44291205]
[1738364272959,0.063,231.14,231.13,35.41184853]
[1738364272960,0.0001,231.14,231.13,35.41184853]
[1738364273272,0.0001,231.14,231.13,49.58791877]
[1738364273681,0.0001,231.14,231.13,44.68859874]
[1738364274187,0.0001,231.14,231.13,49.01509874]
[1738364275480,0.0001,231.14,231.13,48.01509874]
[1738364275861,0.0001,231.14,231.13,27.01509874]
[1738364276286,0.0001,231.14,231.13,9.27675021]
[1738364277784,6.3189,231.14,230.99,8.62825344]
[1738364277987,0.81137543,231.13,231.0,0.29471649]
[1738364278497,6.3189,231.14,231.01,8.62825344]
[1738364278694,6.3189,231.14,231.03,8.62825344]
[1738364278982,6.3189,231.14,231.04,0.29449865]
[1738364279191,6.3189,231.14,231.07,8.62825344]
[1738364279371,6.3189,231.14,231.08,0.29421087]
[1738364279688,6.3189,231.14,231.08,13.78764696]
[1738364282688,6.3189,231.14,231.08,0.29421087]
[1738364283385,6.3189,231.14,231.09,0.29435666]
[1738364283567,6.3189,231.14,231.09,217.0]
[1738364283767,6.3189,231.14,231.1,0.2943659]
[1738364287001,6.3189,231.14,231.1,217.2943659]
[1738364287185,6.3189,231.14,231.1,217.0]
[1738364287494,6.3189,231.14,231.1,230.49343609]
[1738364287699,0.0001,231.14,231.1,230.49343609]
[1738364288172,0.0001,231.14,231.11,0.29403282]
[1738364293129,0.0001,231.14,231.11,217.29403282]
[1738364293305,0.0001,231.14,231.11,217.0]
[1738364302033,0.0001,231.14,231.12,0.2943107]
[1738364304727,0.0001,231.14,231.12,217.2943107]
[1738364304914,0.0001,231.14,231.12,217.0]
[1738364305901,0.0001,231.14,231.13,0.2942679]
[1738364308527,0.0001,231.14,231.13,217.2942679]
[1738364308736,0.0001,231.14,231.13,217.0]
[1738364317122,0.0001,231.14,231.13,217.03]
[1738364331787,0.0001,231.14,231.13,82.33]
[1738364337483,0.0001,231.14,231.13,0.03]
[1738364343390,0.0001,231.14,231.13,217.03]
[1738364346274,0.0001,231.14,231.13,225.66568457]
[1738364346693,0.0001,231.14,231.13,143.36568457]
[1738364349672,0.0001,231.14,231.13,239.0775331]
[1738364352799,0.063,231.25,231.23,19.75694853]
[1738364353006,0.063,231.25,231.24,8.92869764]
[1738364353690,0.063,231.25,231.24,22.34054617]
[1738364353896,0.063,231.25,231.24,28.66504617]
[1738364355479,0.03,231.35,231.29,1.0]
[1738364355680,0.03,231.35,231.31,8.63568457]
[1738364356077,0.03,231.35,231.31,22.0475331]
[1738364356614,0.03,231.35,231.31,8.92824125]
[1738364357685,0.03,231.35,231.31,9.92824125]
[1738364359110,0.03,231.35,231.33,5.3227]
[1738364359296,0.03,231.35,231.34,8.92793957]
[1738364361884,0.03,231.38,231.36,1.0]
[1738364362085,0.03,231.38,231.37,8.92767994]
[1738364363095,0.03,231.38,231.37,13.24967994]
[1738364364905,0.03,231.38,231.37,4.61399537]
[1738364365200,0.03,231.41,231.4,1.0]
[1738364365407,0.03,231.41,231.4,9.63568457]
[1738364366309,0.03,231.41,231.4,27.3690331]
[1738364366608,0.03,231.41,231.4,27.66075997]
[1738364367990,0.03,231.41,231.4,28.66075997]
[1738364370423,0.03,231.41,231.4,27.66075997]
[1738364370632,0.03,231.41,231.4,14.24891144]
[1738364370928,0.03,231.41,231.39,8.63568457]
[1738364371142,0.03,231.41,231.4,0.29220772]
[1738364371940,0.03,231.41,231.38,8.63568457]
[1738364372152,0.03,231.41,231.39,0.29230805]
[1738364377935,0.03,231.41,231.4,8.63568457]
[1738364378121,0.03,231.41,231.4,8.92775427]
[1738364379632,0.03,231.41,231.4,26.6611028]
[1738364379944,0.03,231.41,231.4,27.6611028]
[1738364380451,0.03,231.41,231.4,26.6611028]
[1738364380661,0.03,231.41,231.4,27.6611028]
[1738364381049,0.03,231.41,231.4,26.6611028]
[1738364381358,0.03,231.41,231.4,27.6611028]
[1738364381523,0.03,231.41,231.4,26.6611028]
[1738364381717,0.03,231.41,231.4,13.24925427]
[1738364389054,0.03,231.41,231.4,8.92775427]
[1738364389827,0.03,231.41,231.38,8.95797742]
[1738364390061,0.03,231.41,231.38,0.32229285]
[1738364394027,0.03,231.41,231.38,8.95797742]
[1738364394230,0.03,231.41,231.4,8.63568457]
[1738364400278,0.03,231.41,231.38,8.95797742]
[1738364400573,0.03,231.41,231.38,0.03]
[1738364400769,7.5965,231.45,231.38,0.03]
[1738364401275,0.81017748,231.44,231.38,0.03]
[1738364405380,13.41184853,231.43,231.38,0.03]
[1738364405672,0.81044252,231.42,231.38,0.03]
[1738364406373,13.41184853,231.41,231.38,0.03]
[1738364406542,0.81052455,231.4,231.38,0.03]
[1738364407875,21.02464853,231.39,231.38,0.03]
[1738364408273,21.8352929,231.39,231.38,0.03]
[1738364409172,13.41184853,231.38,231.26,0.64848168]
[1738364409385,13.41184853,231.36,231.25,0.03]
[1738364409593,13.41184853,231.34,231.25,0.03]
[1738364409798,0.81078295,231.33,231.25,0.03]
[1738364410393,13.41184853,231.32,231.25,0.03]
[1738364410597,13.41184853,231.3,231.25,0.03]
[1738364410900,8.4127076,231.29,231.25,0.03]
[1738364412965,13.41184853,231.28,231.25,0.03]
[1738364413170,0.81090524,231.27,231.25,0.03]
[1738364413677,44.41184853,231.26,231.14,0.03]
[1738364413911,13.41184853,231.24,231.14,0.03]
[1738364414201,0.81126681,231.23,231.14,0.03]
[1738364414368,16.33184853,231.22,231.14,0.03]
[1738364414574,8.41309675,231.21,231.14,0.03]
[1738364414897,45.41184853,231.2,231.14,0.03]
[1738364415092,13.41184853,231.18,231.14,0.03]
[1738364415294,13.41184853,231.16,231.14,0.03]
[1738364415496,13.41184853,231.12,231.08,0.03]
[1738364415706,13.41184853,231.1,231.01,0.03]
[1738364415882,30.81169294,231.11,231.01,0.03]
[1738364415883,13.41184853,231.08,231.01,0.03]
[1738364416084,0.81172134,231.07,231.01,0.03]
[1738364416325,0.81168525,231.08,231.02,8.63568457]
[1738364416481,0.81149766,231.12,231.03,0.64919812]
[1738364416680,0.81149766,231.12,231.02,8.63568457]
[1738364416891,14.22334619,231.12,231.02,8.63568457]
[1738364417816,14.22334619,231.12,231.01,13.53202182]
[1738364417982,0.81149766,231.12,231.02,0.64919804]
[1738364418495,14.22334619,231.12,231.02,0.64919804]
[1738364418714,14.22334619,231.12,231.01,13.53202182]
[1738364419021,13.41184853,231.11,231.01,0.03]
[1738364419320,0.81162034,231.1,231.01,0.03]
[1738364419908,13.41184853,231.09,231.01,0.03]
[1738364420085,0.81164243,231.08,231.01,0.03]
[1738364420985,43.41184853,231.06,231.01,0.03]
[1738364421183,13.41184853,231.04,231.01,0.03]
[1738364421425,13.41184853,231.02,231.01,0.03]
[1738364429724,0.81193727,231.03,231.01,0.03]
[1738364436128,13.41184853,231.02,231.01,0.03]
[1738364437133,13.41184853,231.02,230.94,0.03]
[1738364437134,14.41184853,231.02,230.94,0.03]
[1738364437313,13.41184853,231.0,230.94,0.03]
[1738364437514,13.41184853,230.98,230.94,0.03]
[1738364437725,0.81205618,230.97,230.94,0.03]
[1738364440553,13.41184853,230.96,230.94,0.03]
[1738364440754,14.22398706,230.95,230.94,0.03]
[1738364441930,44.22398706,230.95,230.94,0.03]
[1738364442116,13.41184853,230.94,230.89,0.03]
[1738364442322,0.8123049,230.93,230.89,0.03]
[1738364445621,2.94,230.95,230.89,0.03]
[1738364445842,0.81209576,230.96,230.89,0.03]
[1738364445843,0.81209304,230.94,230.89,0.03]
[1738364446764,25.24262221,230.96,230.9,0.64958745]
[1738364446989,0.81198431,231.02,230.91,15.14762182]
[1738364447152,0.81178074,231.05,230.93,13.50202182]
[1738364447347,0.81178074,231.05,230.95,13.50202182]
[1738364447672,0.81167318,231.08,230.96,0.64933855]
[1738364447834,0.81167318,231.08,230.99,13.50202182]
[1738364448033,0.063,231.1,231.01,13.50202182]
[1738364448236,0.063,231.1,231.02,0.64916329]
[1738364448464,0.87445412,231.1,231.02,0.64916329]
[1738364448664,0.063,231.1,231.02,0.64916329]
[1738364449360,0.063,231.1,231.03,13.50202182]
[1738364449570,0.063,231.1,231.05,13.50202182]
[1738364449771,0.063,231.1,231.06,0.64905763]
[1738364450175,0.063,231.1,231.09,13.50202182]
[1738364450475,0.063,231.1,231.09,14.15094601]
[1738364451247,0.063,231.1,231.09,27.56279454]
[1738364451445,25.21802481,231.21,231.1,13.41184853]
[1738364451674,25.21802481,231.21,231.14,13.50202182]
[1738364451963,0.81104389,231.2,231.12,21.57851741]
[1738364452171,0.81104389,231.2,231.13,0.64888717]
[1738364452675,0.81111037,231.26,231.13,0.64888717]
[1738364452972,0.81111037,231.26,231.15,21.57851741]
[1738364453158,0.81111037,231.26,231.16,0.64878359]
[1738364454155,0.81092252,231.29,231.19,21.57851741]
[1738364454356,0.81092252,231.29,231.2,0.64866402]
[1738364454878,0.81081953,231.31,231.21,21.57851741]
[1738364455083,0.81081953,231.31,231.22,0.64857653]
[1738364455473,0.87371842,231.32,231.22,0.64857653]
[1738364455659,0.063,231.32,231.23,21.57851741]
[1738364455858,0.87368004,231.32,231.24,0.64854403]
[1738364456081,0.063,231.32,231.24,0.64854403]
[1738364456461,0.87364621,231.32,231.24,0.64854403]
[1738364456658,0.063,231.32,231.24,0.64854403]
[1738364457069,0.063,231.32,231.24,156.92706144]
[1738364457271,0.063,231.32,231.24,156.27851741]
[1738364457857,6.176,231.43,231.25,13.41184853]
[1738364458183,6.176,231.43,231.27,13.41184853]
[1738364458481,6.176,231.43,231.29,13.41184853]
[1738364458780,6.176,231.43,231.31,13.41184853]
[1738364459577,6.176,231.43,231.27,0.6484056]
[1738364459778,6.176,231.43,231.25,0.64843462]
[1738364459956,6.176,231.43,231.26,13.41184853]
[1738364460277,6.176,231.43,231.28,13.41184853]
[1738364460483,6.176,231.43,231.3,13.41184853]
[1738364460853,6.176,231.43,231.27,0.64845527]
[1738364461083,6.176,231.43,231.26,0.64848998]
[1738364461582,6.176,231.43,231.26,14.06033851]
[1738364462162,6.176,231.43,231.26,35.63885592]
[1738364464079,7.176,231.43,231.26,35.63885592]
[1738364465082,1.0,231.4,231.26,134.7]
[1738364465472,1.0,231.38,231.26,134.7]
[1738364465791,31.0,231.38,231.26,134.7]
[1738364466081,1.0,231.35,231.19,217.0]
[1738364466293,1.0,231.34,231.19,217.0]
[1738364466591,1.6095,231.33,231.2,13.41184853]
[1738364466793,1.0,231.3,231.16,136.3407]
[1738364467005,36.3261,231.31,231.17,13.41184853]
[1738364467359,1.0,231.27,231.16,136.3407]
[1738364467561,1.0,231.27,231.16,134.7]
[1738364467760,2.0,231.27,231.16,134.7]
[1738364468799,1.0,231.25,231.16,134.7]
[1738364469096,1.0,231.22,231.06,134.7]
[1738364469263,2.0,231.22,231.06,134.7]
[1738364469468,6.3261,231.21,231.06,134.7]
[1738364469807,1.0,231.2,231.06,134.7]
[1738364470101,1.0,231.2,231.07,13.41184853]
[1738364470396,3.94,231.2,231.07,13.41184853]
[1738364470902,2.94,231.2,231.07,13.41184853]
[1738364471095,6.3261,231.21,231.09,13.41184853]
[1738364471769,6.3261,231.21,231.07,0.64900391]
[1738364472266,6.3261,231.21,231.08,13.41184853]
[1738364472466,6.3868,231.26,231.09,0.64896538]
[1738364473788,6.3868,231.26,231.1,13.41184853]
[1738364473981,6.3868,231.26,231.11,0.64887058]
[1738364474188,6.3868,231.26,231.11,135.34887058]
[1738364474389,6.3868,231.26,231.11,134.7]
[1738364475390,6.3868,231.26,231.12,0.64892315]
[1738364475977,6.3868,231.26,231.13,13.41184853]
[1738364476278,6.3868,231.26,231.15,13.41184853]
[1738364479908,0.063,231.27,231.17,13.41184853]
[1738364480107,0.063,231.27,231.19,13.41184853]
[1738364480506,0.063,231.27,231.2,0.64870265]
[1738364480808,0.063,231.27,231.19,14.06054847]
[1738364484815,0.063,231.27,231.23,13.41184853]
[1738364485025,0.063,231.27,231.24,0.64850146]
[1738364488894,0.063,231.27,231.24,135.34850146]
[1738364489097,0.063,231.27,231.25,13.41184853]
[1738364489413,0.063,231.27,231.26,14.0603909]
[1738364490125,0.063,231.27,231.26,13.41184853]
[1738364494943,0.063,231.27,231.26,134.7]
[1738364495525,0.063,231.27,231.19,217.0]
[1738364495731,0.063,231.27,231.19,134.7]
[1738364496429,6.1981,231.27,231.12,217.03]
[1738364496736,6.1981,231.27,231.13,0.64885993]
[1738364497113,6.1981,231.27,231.13,135.34885993]
[1738364497320,6.1981,231.27,231.13,134.7]
[1738364497522,7.1981,231.27,231.13,134.7]
[1738364498725,8.1981,231.27,231.13,134.7]
[1738364498922,8.1981,231.27,231.12,0.03]
[1738364498923,32.0,231.25,231.12,0.03]
[1738364499122,1.0,231.21,231.12,0.03]
[1738364499718,1.6232,231.2,231.12,0.03]
[1738364499920,1.0,231.18,231.12,0.03]
[1738364500136,6.1351,231.17,231.12,0.03]
[1738364500649,1.0,231.16,231.12,0.03]
[1738364500822,1.0,231.14,231.02,0.03]
[1738364502549,19.54694853,231.17,231.02,0.03]
[1738364502550,30.0,231.08,231.02,0.03]
[1738364502723,6.1351,231.07,231.02,0.03]
[1738364505144,7.1351,231.07,231.02,0.03]
[1738364505820,10.0751,231.07,231.02,0.03]
[1738364506225,9.0751,231.07,231.02,0.03]
[1738364506545,10.0751,231.07,231.02,0.03]
[1738364507920,9.0751,231.07,231.02,0.03]
[1738364511041,6.1351,231.07,231.02,0.03]
[1738364511243,6.5157,231.12,231.02,0.03]
[1738364513430,6.5157,231.12,231.03,13.41184853]
[1738364513630,6.5157,231.18,231.05,13.41184853]
[1738364513936,6.5157,231.18,231.05,148.11184853]
[1738364514325,6.5157,231.18,231.06,0.64911875]
[1738364514553,6.5157,231.18,231.07,13.41184853]
[1738364514727,6.5157,231.23,231.09,13.41184853]
[1738364515054,6.5157,231.23,231.11,13.41184853]
[1738364515226,3.003,231.27,231.12,0.64886941]
[1738364515732,3.003,231.27,231.13,13.41184853]
[1738364515935,3.003,231.27,231.15,13.41184853]
[1738364516248,3.003,231.27,231.17,13.41184853]
[1738364518266,3.003,231.27,231.16,0.64881652]
[1738364518552,3.003,231.27,231.11,1.5904]
[1738364518747,3.003,231.27,231.13,13.41184853]
[1738364519730,3.003,231.27,231.12,0.64887358]
[1738364519731,3.003,231.27,231.12,13.41184853]
[1738364519933,2.0,231.26,231.12,13.41184853]
[1738364520233,1.0,231.2,231.07,217.0]
[1738364520437,1.0,231.18,231.07,217.0]
[1738364520656,1.0,231.17,231.02,134.73]
[1738364521635,1.0,231.16,231.03,13.41184853]
[1738364522351,1.0,231.13,231.02,0.03]
[1738364522557,1.0,231.12,231.02,0.03]
[1738364523568,1.0,231.1,231.02,0.03]
[1738364525160,1.0,231.06,231.02,0.03]
[1738364525734,1.0,231.04,231.02,0.03]
[1738364527042,30.0,231.05,231.02,0.03]
[1738364527368,1.0,231.07,231.02,0.03]
[1738364527568,2.94,231.08,231.02,0.03]
[1738364528060,30.0,231.11,231.02,0.03]
[1738364528232,11.1107,231.18,231.02,0.67926889]
[1738364528434,7.1707,231.18,231.03,13.41184853]
[1738364528635,7.1707,231.18,231.03,14.06100087]
[1738364529250,6.1707,231.18,231.03,231.06100087]
[1738364529435,6.1707,231.18,231.05,13.41184853]
[1738364530641,6.1707,231.18,231.07,13.41184853]
[1738364530965,6.1707,231.18,231.08,0.64903367]
[1738364531661,6.1707,231.18,231.07,148.11184853]
[1738364531838,6.1707,231.18,231.07,134.7]
[1738364532542,1.0,231.16,231.07,134.7]
[1738364533166,1.0,231.15,231.07,134.7]
[1738364533543,1.0,231.13,231.02,0.03]
[1738364535263,1.0,231.11,231.02,0.03]
[1738364535438,2.0,231.13,231.02,0.03]
[1738364536062,1.5631,231.14,231.02,0.03]
[1738364536367,1.0,231.17,231.03,13.41184853]
[1738364536538,9.1107,231.18,231.03,13.41184853]
[1738364536737,9.1107,231.18,231.03,230.41184853]
[1738364536968,6.1707,231.18,231.05,13.41184853]
[1738364537269,7.398,231.23,231.07,13.41184853]
[1738364537472,6.398,231.23,231.09,13.41184853]
[1738364537640,6.1707,231.25,231.11,35.03426848]
[1738364537845,3.023,231.27,231.13,13.41184853]
[1738364538157,3.023,231.27,231.14,0.64884994]
[1738364538357,3.023,231.27,231.15,13.41184853]
[1738364538663,3.023,231.27,231.17,13.41184853]
[1738364539466,3.023,231.27,231.17,148.11184853]
[1738364539766,0.063,231.27,231.17,148.11184853]
[1738364540964,0.063,231.27,231.19,13.41184853]
[1738364541172,0.063,231.27,231.21,13.41184853]
[1738364541347,0.063,231.27,231.22,0.64865042]
[1738364541846,0.063,231.27,231.23,13.41184853]
[1738364542046,0.063,231.27,231.26,13.41184853]
[1738364542247,0.063,231.27,231.26,252.03426848]
[1738364542451,0.063,231.27,231.26,230.41184853]
[1738364542656,0.063,231.27,231.26,217.0]
[1738364543041,0.063,231.27,231.23,1.6321]
[1738364543263,0.063,231.27,231.15,7.8598]
[1738364543542,0.063,231.27,231.17,13.41184853]
[1738364543751,0.063,231.27,231.18,0.64876342]
[1738364543951,0.063,231.27,231.19,13.41184853]
[1738364544151,0.063,231.27,231.21,13.41184853]
[1738364544441,0.063,231.27,231.22,0.64859295]
[1738364544660,0.063,231.27,231.23,13.41184853]
[1738364544871,0.063,231.27,231.25,35.03426848]
[1738364545050,0.063,231.27,231.26,0.64840142]
[1738364545246,0.063,231.27,231.26,135.34840142]
[1738364545446,0.063,231.27,231.26,134.7]
[1738364545648,0.063,231.27,231.17,238.62241995]
[1738364545951,0.063,231.27,231.19,13.41184853]
[1738364546151,0.063,231.27,231.19,134.7]
[1738364546670,0.063,231.27,231.2,0.64875827]
[1738364546854,0.063,231.27,231.21,13.41184853]
[1738364547055,0.063,231.27,231.22,0.64860125]
[1738364547257,0.063,231.27,231.22,217.64860125]
[1738364547457,0.063,231.27,231.22,217.0]
[1738364548471,0.063,231.27,231.23,0.64857277]
[1738364548877,0.063,231.27,231.22,217.0]
[1738364549250,0.063,231.27,231.15,224.8598]
[1738364549444,0.063,231.27,231.16,0.64878164]
[1738364549751,0.063,231.27,231.17,13.41184853]
[1738364549967,0.063,231.27,231.19,13.41184853]
[1738364550268,0.063,231.27,231.2,0.64866072]
[1738364550475,0.063,231.27,231.19,13.41184853]
[1738364551174,0.063,231.27,231.21,13.41184853]
[1738364551374,0.063,231.27,231.22,0.64861185]
[1738364551778,0.063,231.27,231.23,13.41184853]
[1738364551951,0.063,231.27,231.25,13.41184853]
[1738364552152,0.063,231.27,231.26,14.06034091]
[1738364552373,0.063,231.27,231.26,231.06034091]
[1738364552675,0.063,231.27,231.26,217.0]
[1738364553051,0.063,231.27,231.17,238.62241995]
[1738364553256,0.063,231.27,231.22,13.41184853]
[1738364553470,0.063,231.27,231.25,21.62241995]
[1738364553673,0.063,231.27,231.26,0.64840913]
[1738364553970,0.063,231.27,231.26,135.34840913]
[1738364554274,0.063,231.27,231.26,134.7]
[1738364554591,0.063,231.27,231.26,148.11184853]
[1738364557480,0.063,231.27,231.26,134.7]
[1738364558884,0.063,231.27,231.22,82.3]
[1738364558885,0.063,231.27,231.22,217.0]
[1738364559784,0.063,231.27,231.23,0.64866398]
[1738364560379,0.063,231.27,231.22,217.0]
[1738364560583,0.063,231.27,231.22,82.3]
[1738364564461,0.063,231.27,231.19,134.7]
[1738364564788,0.063,231.27,231.15,134.7]
[1738364567888,0.063,231.27,231.16,0.64885102]